fUST/lending_fUST_20251014
["ID","MTS","AMOUNT","RATE_DAILY","PERIOD"]
[391247521,1760427042294,-500.0,0.00019178,2]
[391247522,1760427042303,-1818.7,0.00019178,2]
[391247523,1760427042312,-500.0,0.00019178,2]
[391247524,1760427042321,-1818.7,0.00019178,2]
[391247525,1760427042331,-1818.7,0.00019178,2]
[391247526,1760427042340,-1818.7,0.00019178,2]
[391247527,1760427042349,-1818.7,0.00019178,2]
[391247528,1760427042358,-1818.7,0.00019178,2]
[391247529,1760427042367,-1818.7,0.00019178,2]
[391247530,1760427042376,-1818.7,0.00019178,2]
[391247531,1760427042384,-1818.7,0.00019178,2]
[391247532,1760427042395,-1818.7,0.00019178,2]
[391247533,1760427042404,-1818.83238559,0.00019178,2]
[391247534,1760427042413,-500.0,0.00019178,2]
[391247535,1760427042422,-500.0,0.00019178,2]
[391247536,1760427042431,-500.0,0.00019178,2]
[391247537,1760427042440,-500.0,0.00019178,2]
[391247538,1760427042449,-500.0,0.00019178,2]
[391247539,1760427042458,-500.0,0.00019178,2]
[391247540,1760427042467,-500.0,0.00019178,2]
[391247541,1760427042475,-500.0,0.00019178,2]
[391247542,1760427042485,-500.0,0.00019178,2]
[391247543,1760427042494,-500.0,0.00019178,2]
[391247544,1760427042503,-500.0,0.00019178,2]
[391247545,1760427042513,-500.0,0.00019178,2]
[391247546,1760427042525,-500.0,0.00019178,2]
[391247547,1760427042535,-500.0,0.00019178,2]
[391247548,1760427042545,-504.66,0.00019178,2]
[391247549,1760427042554,-500.0,0.00019178,2]
[391247550,1760427042563,-500.0,0.00019178,2]
[391247551,1760427042572,-500.0,0.00019178,2]
[391247552,1760427042581,-500.0,0.00019178,2]
[391247553,1760427042591,-500.0,0.00019178,2]
[391247554,1760427042600,-500.0,0.00019178,2]
[391247555,1760427042609,-500.0,0.00019178,2]
[391247556,1760427042618,-500.0,0.00019178,2]
[391247557,1760427042627,-500.0,0.00019178,2]
[391247558,1760427042636,-500.0,0.00019178,2]
[391247559,1760427042646,-399.30690851,0.00019178,2]
[391247560,1760427042655,-500.0,0.00019178,2]
[391247561,1760427042664,-500.0,0.00019178,2]
[391247562,1760427042674,-500.0,0.00019178,2]
[391247563,1760427042683,-500.0,0.00019178,2]
[391247564,1760427042692,-500.0,0.00019178,2]
[391247565,1760427042702,-500.0,0.00019178,2]
[391247566,1760427042711,-500.0,0.00019178,2]
[391247567,1760427042719,-496.99,0.00019178,2]
[391247568,1760427042728,-482.65147374,0.00019178,2]
[391247569,1760427042738,-500.0,0.00019178,2]
[391247570,1760427042747,-501.11,0.00019178,2]
[391247571,1760427042755,-500.0,0.00019178,2]
[391247572,1760427042764,-500.0,0.00019178,2]
[391247573,1760427042773,-291.06,0.00019178,2]
[391247574,1760427042782,-500.0,0.00019178,2]
[391247575,1760427042791,-500.0,0.00019178,2]
[391247576,1760427042799,-500.0,0.00019178,2]
[391247577,1760427042897,-500.0,0.00019178,2]
[391247578,1760427042917,-500.0,0.00019178,2]
[391247579,1760427042927,-551.0210772,0.00019178,2]
[391247580,1760427042936,-500.0,0.00019178,2]
[391247581,1760427042945,-500.0,0.00019178,2]
[391247582,1760427042954,-500.0,0.00019178,2]
[391247583,1760427042963,-500.0,0.00019178,2]
[391247584,1760427042971,-500.0,0.00019178,2]
[391247585,1760427042980,-500.0,0.00019178,2]
[391247586,1760427042990,-500.0,0.00019178,2]
[391247587,1760427043004,-500.0,0.00019178,2]
[391247588,1760427043013,-500.0,0.00019178,2]
[391247589,1760427043023,-500.0,0.00019178,2]
[391247590,1760427043034,-500.0,0.00019178,2]
[391247591,1760427043044,-397.92331242,0.00019178,2]
[391247592,1760427043053,-500.0,0.00019178,2]
[391247593,1760427043062,-500.0,0.00019178,2]
[391247594,1760427043073,-500.0,0.00019178,2]
[391247595,1760427043082,-408.77756042,0.00019178,2]
[391247596,1760427043091,-500.0,0.00019178,2]
[391247597,1760427043100,-500.0,0.00019178,2]
[391247598,1760427043110,-500.0,0.00019178,2]
[391247599,1760427043119,-2861.6,0.00019178,2]
[391247600,1760427043128,-500.0,0.00019178,2]
[391247601,1760427043137,-2861.6,0.00019178,2]
[391247602,1760427043150,-2861.6,0.00019178,2]
[391247603,1760427043159,-500.0,0.00019178,2]
[391247604,1760427043168,-2861.6,0.00019178,2]
[391247605,1760427043178,-237.83337516,0.00019178,2]
[391247606,1760427043187,-2861.6,0.00019178,2]
[391247607,1760427043196,-2861.6,0.00019178,2]
[391247608,1760427043205,-2861.6,0.00019178,2]
[391247609,1760427043214,-2861.6,0.00019178,2]
[391247610,1760427043224,-2861.6,0.00019178,2]
[391247611,1760427043233,-2861.6,0.00019178,2]
[391247612,1760427043242,-500.0,0.00019178,2]
[391247613,1760427043251,-2861.6,0.00019178,2]
[391247614,1760427043261,-500.0,0.00019178,2]
[391247615,1760427043270,-2861.6,0.00019178,2]
[391247616,1760427043279,-500.0,0.00019178,2]
[391247617,1760427043289,-2861.6,0.00019178,2]
[391247619,1760427043298,-500.0,0.00019178,2]
[391247620,1760427043307,-2861.6,0.00019178,2]
[391247622,1760427043316,-2861.6,0.00019178,2]
[391247623,1760427043325,-2861.6,0.00019178,2]
[391247624,1760427043334,-2861.6,0.00019178,2]
[391247625,1760427043343,-2861.6,0.00019178,2]
[391247626,1760427043352,-2861.6,0.00019178,2]
[391247627,1760427043361,-2861.6,0.00019178,2]
[391247628,1760427043370,-500.0,0.00019178,2]
[391247629,1760427043379,-2861.6,0.00019178,2]
[391247630,1760427043388,-497.59,0.00019178,2]
[391247631,1760427043400,-2861.6,0.00019178,2]
[391247633,1760427043409,-2861.6,0.00019178,2]
[391247635,1760427043418,-2861.65383209,0.00019178,2]
[391247637,1760427043427,-500.0,0.00019178,2]
[391247639,1760427043436,-500.0,0.00019178,2]
[391247641,1760427043445,-500.0,0.00019178,2]
[391247643,1760427043455,-500.0,0.00019178,2]
[391247645,1760427043464,-599.52,0.00019178,2]
[391247647,1760427043472,-1301.77,0.00019178,2]
[391247649,1760427043481,-1301.77,0.00019178,2]
[391247651,1760427043490,-1301.77,0.00019178,2]
[391247653,1760427043499,-1301.77,0.00019178,2]
[391247656,1760427043507,-1301.77,0.00019178,2]
[391247658,1760427043516,-1301.77,0.00019178,2]
[391247660,1760427043525,-1301.77,0.00019178,2]
[391247662,1760427043534,-1301.77,0.00019178,2]
[391247664,1760427043543,-1301.77,0.00019178,2]
[391247666,1760427043552,-1301.77,0.00019178,2]
[391247667,1760427043561,-1301.77,0.00019178,2]
[391247668,1760427043570,-1301.77,0.00019178,2]
[391247669,1760427043578,-1301.77,0.00019178,2]
[391247671,1760427043587,-1301.77,0.00019178,2]
[391247673,1760427043596,-1301.77,0.00019178,2]
[391247675,1760427043605,-1301.77,0.00019178,2]
[391247677,1760427043614,-1301.77,0.00019178,2]
[391247679,1760427043623,-1301.77,0.00019178,2]
[391247681,1760427043632,-500.0,0.00019178,2]
[391247684,1760427043641,-1301.77,0.00019178,2]
[391247686,1760427043652,-500.0,0.00019178,2]
[391247689,1760427043660,-1301.77,0.00019178,2]
[391247692,1760427043669,-500.0,0.00019178,2]
[391247694,1760427043678,-1301.77,0.00019178,2]
[391247696,1760427043687,-500.0,0.00019178,2]
[391247698,1760427043696,-500.0,0.00019178,2]
[391247700,1760427043704,-1301.77,0.00019178,2]
[391247702,1760427043713,-500.0,0.00019178,2]
[391247704,1760427043722,-1301.77,0.00019178,2]
[391247706,1760427043732,-500.0,0.00019178,2]
[391247708,1760427043742,-1301.8543527,0.00019178,2]
[391247710,1760427043751,-500.0,0.00019178,2]
[391247712,1760427043760,-500.0,0.00019178,2]
[391247714,1760427043769,-506.33271112,0.00019178,2]
[391247716,1760427043778,-500.0,0.00019178,2]
[391247718,1760427043787,-500.0,0.00019178,2]
[391247720,1760427043796,-500.0,0.00019178,2]
[391247721,1760427043805,-500.0,0.00019178,2]
[391247723,1760427043814,-500.0,0.00019178,2]
[391247725,1760427043823,-500.0,0.00019178,2]
[391247726,1760427043832,-500.0,0.00019178,2]
[391247727,1760427043841,-500.0,0.00019178,2]
[391247728,1760427043850,-500.0,0.00019178,2]
[391247729,1760427043859,-500.0,0.00019178,2]
[391247730,1760427043868,-500.0,0.00019178,2]
[391247731,1760427043877,-593.63738872,0.00019178,2]
[391247732,1760427043887,-500.0,0.00019178,2]
[391247734,1760427043898,-500.0,0.00019178,2]
[391247736,1760427043907,-500.0,0.00019178,2]
[391247738,1760427043917,-500.0,0.00019178,2]
[391247740,1760427043926,-500.0,0.00019178,2]
[391247742,1760427043935,-500.0,0.00019178,2]
[391247743,1760427043944,-500.0,0.00019178,2]
[391247745,1760427043953,-500.0,0.00019178,2]
[391247747,1760427043963,-500.0,0.00019178,2]
[391247748,1760427043973,-500.0,0.00019178,2]
[391247749,1760427043987,-500.0,0.00019178,2]
[391247750,1760427044008,-500.0,0.00019178,2]
[391247751,1760427044018,-500.0,0.00019178,2]
[391247752,1760427044027,-500.0,0.00019178,2]
[391247753,1760427044035,-500.0,0.00019178,2]
[391247754,1760427044044,-500.0,0.00019178,2]
[391247755,1760427044054,-261.882849,0.00019178,2]
[391247756,1760427044063,-2084.08,0.00019281,2]
[391247757,1760427044073,-2084.08,0.00019281,2]
[391247758,1760427044082,-300.0,0.00019282,2]
[391247759,1760427044091,-300.0,0.00019282,2]
[391247760,1760427044101,-300.0,0.00019282,2]
[391247761,1760427044110,-300.0,0.00019282,2]
[391247762,1760427044122,-300.0,0.00019282,2]
[391247763,1760427044140,-300.0,0.00019282,2]
[391247764,1760427044154,-300.0,0.00019282,2]
[391247765,1760427044163,-300.0,0.00019282,2]
[391247766,1760427044172,-300.0,0.00019282,2]
[391247767,1760427044184,-300.0,0.00019282,2]
[391247768,1760427044194,-300.0,0.00019282,2]
[391247769,1760427044204,-300.0,0.00019282,2]
[391247770,1760427044213,-300.0,0.00019282,2]
[391247771,1760427044223,-300.0,0.00019282,2]
[391247772,1760427044232,-300.0,0.00019282,2]
[391247773,1760427044242,-600.0,0.00019282,2]
[391247774,1760427044251,-172.5,0.00019412,2]
[391247775,1760427044260,-1312.57642255,0.00019543,2]
[391247776,1760427044268,-658.08560513,0.00019921,2]
[391247777,1760427044277,-195.0,0.00020012,2]
[391247778,1760427044287,-602.09468318,0.00020023,2]
[391247779,1760427044297,-217.5,0.00020612,2]
[391247780,1760427044306,-420.0,0.00020617,2]
[391247781,1760427044316,-1680.0,0.00020717,2]
[391247782,1760427044327,-666.0,0.00020731,2]
[391247783,1760427044337,-493.91,0.00021012,2]
[391247784,1760427044347,-720.0,0.0002121,20]
[391247785,1760427044356,-240.0,0.00021212,2]
[391247786,1760427044364,-194.0,0.00021534,5]
[391247787,1760427044373,-645.24286106,0.00021775,2]
[391247788,1760427044382,-170.10833243,0.00021787,2]
[391247789,1760427044391,-219.5155695,0.00021812,2]
[391247790,1760427044401,-2192.34230141,0.00022113,2]
[391247791,1760427044410,-29584.27,0.000223,7]
[391247792,1760427044419,-587.0,0.00022474,2]
[391247793,1760427044427,-2351.0,0.00022694,2]
[391247794,1760427044436,-1000.0,0.000227,2]
[391247795,1760427044445,-1000.0,0.000227,2]
[391247796,1760427044454,-1000.0,0.00022742,30]
[391247797,1760427044463,-1000.0,0.00022751,2]
[391247798,1760427044471,-1000.0,0.00022751,2]
[391247799,1760427044480,-1000.0,0.00022751,2]
[391247800,1760427044489,-1000.0,0.00022751,2]
[391247801,1760427044498,-1000.0,0.00022751,2]
[391247802,1760427044507,-1000.0,0.00022751,2]
[391247803,1760427044516,-500.0,0.00022751,2]
[391247804,1760427044525,-151.0,0.00022751,2]
[391247805,1760427044534,-151.0,0.00022751,2]
[391247806,1760427044543,-151.0,0.00022751,2]
[391247807,1760427044552,-1000.0,0.00022751,2]
[391247808,1760427044561,-1000.0,0.00022751,2]
[391247809,1760427044570,-500.0,0.00022751,2]
[391247810,1760427044579,-151.0,0.00022751,2]
[391247811,1760427044588,-151.0,0.00022751,2]
[391247812,1760427044597,-1000.0,0.00022751,2]
[391247813,1760427044606,-1000.0,0.00022751,2]
[391247814,1760427044615,-500.0,0.00022751,2]
[391247815,1760427044624,-250.0,0.00022751,2]
[391247816,1760427044632,-151.0,0.00022751,2]
[391247817,1760427044642,-151.0,0.00022751,2]
[391247818,1760427044653,-1000.0,0.00022751,2]
[391247819,1760427044662,-1000.0,0.00022751,2]
[391247820,1760427044671,-500.0,0.00022751,2]
[391247821,1760427044680,-250.0,0.00022751,2]
[391247822,1760427044689,-151.0,0.00022751,2]
[391247823,1760427044698,-151.0,0.00022751,2]
[391247824,1760427044707,-1000.0,0.00022751,2]
[391247825,1760427044716,-500.0,0.00022751,2]
[391247826,1760427044725,-1000.0,0.00022751,2]
[391247827,1760427044734,-250.0,0.00022751,2]
[391247828,1760427044742,-151.0,0.00022751,2]
[391247829,1760427044751,-151.0,0.00022751,2]
[391247830,1760427044760,-1000.0,0.00022751,2]
[391247831,1760427044769,-1000.0,0.00022751,2]
[391247832,1760427044778,-250.0,0.00022751,2]
[391247833,1760427044787,-151.0,0.00022751,2]
[391247834,1760427044796,-18603.8837,0.00022751,2]
[391247835,1760427044805,-151.0,0.00022751,2]
[391247836,1760427044814,-1000.0,0.00022751,2]
[391247837,1760427044823,-500.0,0.00022751,2]
[391247838,1760427044832,-1000.0,0.00022751,2]
[391247839,1760427044841,-250.0,0.00022751,2]
[391247840,1760427044850,-151.0,0.00022751,2]
[391247841,1760427044859,-151.0,0.00022751,2]
[391247842,1760427044867,-1000.0,0.00022751,2]
[391247843,1760427044876,-500.0,0.00022751,2]
[391247844,1760427044886,-1000.0,0.00022751,2]
[391247845,1760427044896,-250.0,0.00022751,2]
[391247846,1760427044905,-151.0,0.00022751,2]
[391247847,1760427044915,-151.0,0.00022751,2]
[391247848,1760427044924,-500.0,0.00022751,2]
[391247849,1760427044933,-1000.0,0.00022751,2]
[391247850,1760427044942,-1000.0,0.00022751,2]
[391247851,1760427044951,-151.0,0.00022751,2]
[391247852,1760427044961,-151.0,0.00022751,2]
[391247853,1760427044970,-151.0,0.00022751,2]
[391247854,1760427044979,-151.0,0.00022751,2]
[391247855,1760427044989,-1000.0,0.00022751,2]
[391247856,1760427045003,-500.0,0.00022751,2]
[391247857,1760427045012,-1000.0,0.00022751,2]
[391247858,1760427045022,-151.0,0.00022751,2]
[391247859,1760427045031,-151.0,0.00022751,2]
[391247860,1760427045043,-151.0,0.00022751,2]
[391247861,1760427045052,-151.0,0.00022751,2]
[391247862,1760427045062,-1000.0,0.00022751,2]
[391247863,1760427045070,-500.0,0.00022751,2]
[391247864,1760427045081,-1000.0,0.00022751,2]
[391247865,1760427045090,-151.0,0.00022751,2]
[391247866,1760427045099,-151.0,0.00022751,2]
[391247867,1760427045108,-151.0,0.00022751,2]
[391247868,1760427045117,-505.53359552,0.00022751,2]
[391247869,1760427045126,-1000.0,0.00022751,2]
[391247870,1760427045135,-151.0,0.00022751,2]
[391247871,1760427045146,-1000.0,0.00022751,2]
[391247872,1760427045155,-151.0,0.00022751,2]
[391247873,1760427045164,-151.0,0.00022751,2]
[391247874,1760427045174,-1000.0,0.00022751,2]
[391247875,1760427045183,-151.0,0.00022751,2]
[391247876,1760427045192,-1000.0,0.00022751,2]
[391247877,1760427045201,-151.0,0.00022751,2]
[391247878,1760427045211,-151.0,0.00022751,2]
[391247879,1760427045221,-1000.0,0.00022751,2]
[391247880,1760427045243,-151.0,0.00022751,2]
[391247881,1760427045260,-1000.0,0.00022751,2]
[391247882,1760427045270,-151.0,0.00022751,2]
[391247883,1760427045280,-157.77191756,0.00022751,2]
[391247884,1760427045291,-1000.0,0.00022751,2]
[391247885,1760427045301,-151.0,0.00022751,2]
[391247886,1760427045311,-1000.0,0.00022751,2]
[391247887,1760427045320,-151.0,0.00022751,2]
[391247888,1760427045330,-1000.0,0.00022751,2]
[391247889,1760427045340,-151.0,0.00022751,2]
[391247890,1760427045349,-162.38071901,0.00022751,2]
[391247891,1760427045358,-1000.0,0.00022751,2]
[391247892,1760427045367,-151.0,0.00022751,2]
[391247893,1760427045376,-1000.0,0.00022751,2]
[391247894,1760427045385,-151.0,0.00022751,2]
[391247895,1760427045396,-1000.0,0.00022751,2]
[391247896,1760427045405,-151.0,0.00022751,2]
[391247897,1760427045414,-1000.0,0.00022751,2]
[391247898,1760427045423,-151.0,0.00022751,2]
[391247899,1760427045432,-279.53150536,0.00022751,2]
[391247900,1760427045441,-1000.0,0.00022751,2]
[391247901,1760427045451,-162.38071901,0.00022751,2]
[391247902,1760427045460,-151.0,0.00022751,2]
[391247903,1760427045469,-151.0,0.00022751,2]
[391247904,1760427045478,-151.0,0.00022751,2]
[391247905,1760427045487,-151.0,0.00022751,2]
[391247906,1760427045497,-151.0,0.00022751,2]
[391247907,1760427045506,-151.0,0.00022751,2]
[391247908,1760427045515,-151.0,0.00022751,2]
[391247909,1760427045524,-250.0,0.00022751,2]
[391247910,1760427045534,-151.0,0.00022751,2]
[391247911,1760427045543,-151.0,0.00022751,2]
[391247912,1760427045552,-151.0,0.00022751,2]
[391247913,1760427045562,-250.0,0.00022751,2]
[391247914,1760427045571,-151.0,0.00022751,2]
[391247915,1760427045580,-151.0,0.00022751,2]
[391247916,1760427045590,-151.0,0.00022751,2]
[391247917,1760427045599,-500.0,0.00022751,2]
[391247918,1760427045608,-250.0,0.00022751,2]
[391247919,1760427045618,-151.0,0.00022751,2]
[391247920,1760427045627,-151.0,0.00022751,2]
[391247921,1760427045729,-151.0,0.00022751,2]
[391247922,1760427045739,-500.0,0.00022751,2]
[391247923,1760427045748,-250.0,0.00022751,2]
[391247924,1760427045757,-151.0,0.00022751,2]
[391247925,1760427045767,-151.0,0.00022751,2]
[391247926,1760427045776,-212.33504386,0.00022751,2]
[391247927,1760427045785,-500.0,0.00022751,2]
[391247928,1760427045794,-250.0,0.00022751,2]
[391247929,1760427045803,-151.0,0.00022751,2]
[391247930,1760427045812,-500.0,0.00022751,2]
[391247931,1760427045821,-250.0,0.00022751,2]
[391247932,1760427045830,-500.0,0.00022751,2]
[391247933,1760427045839,-250.0,0.00022751,2]
[391247934,1760427045848,-500.0,0.00022751,2]
[391247935,1760427045858,-250.0,0.00022751,2]
[391247936,1760427045867,-500.0,0.00022751,2]
[391247937,1760427045875,-250.0,0.00022751,2]
[391247938,1760427045886,-151.0,0.00022751,2]
[391247939,1760427045896,-500.0,0.00022751,2]
[391247940,1760427045905,-250.0,0.00022751,2]
[391247941,1760427045915,-151.0,0.00022751,2]
[391247942,1760427045923,-500.0,0.00022751,2]
[391247943,1760427045932,-250.0,0.00022751,2]
[391247944,1760427045941,-151.0,0.00022751,2]
[391247945,1760427045950,-500.0,0.00022751,2]
[391247946,1760427045960,-250.0,0.00022751,2]
[391247947,1760427045969,-151.0,0.00022751,2]
[391247948,1760427045978,-250.0,0.00022751,2]
[391247949,1760427045987,-500.0,0.00022751,2]
[391247950,1760427046000,-250.0,0.00022751,2]
[391247951,1760427046009,-151.0,0.00022751,2]
[391247952,1760427046019,-500.0,0.00022751,2]
[391247953,1760427046028,-2030.296672,0.00022751,2]
[391247954,1760427046039,-250.0,0.00022751,2]
[391247955,1760427046048,-500.0,0.00022751,2]
[391247956,1760427046058,-151.0,0.00022751,2]
[391247957,1760427046068,-250.0,0.00022751,2]
[391247958,1760427046078,-500.0,0.00022751,2]
[391247959,1760427046087,-194.98160629,0.00022751,2]
[391247960,1760427046096,-250.0,0.00022751,2]
[391247961,1760427046105,-500.0,0.00022751,2]
[391247962,1760427046114,-250.0,0.00022751,2]
[391247963,1760427046123,-500.0,0.00022751,2]
[391247964,1760427046132,-500.0,0.00022751,2]
[391247965,1760427046141,-476.17714604,0.00022751,2]
[391247966,1760427046152,-2084.08,0.00022799,2]
[391247968,1760427046161,-2084.08,0.00022799,2]
[391247969,1760427046171,-2084.08,0.00022799,2]
[391247970,1760427046180,-2084.08,0.00022799,2]
[391247971,1760427046189,-2084.08,0.00022799,2]
[391247972,1760427046198,-2084.2,0.00022799,2]
[391247974,1760427046208,-402.43064913,0.000228,7]
[391247976,1760427046218,-2105.41764886,0.00022806,2]
[391247978,1760427046227,-987.82,0.00022922,2]
[391247980,1760427046237,-864.0,0.00023331,20]
[391247982,1760427046246,-2405.970354,0.00023355,2]
[391247984,1760427046256,-120694.9785843,0.00024142,2]
[391247986,1760427046265,-500.0,0.00024173,2]
[391247988,1760427046274,-600.0,0.00024465,2]
[391247989,1760427046283,-200.0,0.00024472,2]
[391247990,1760427046293,-645.24286106,0.00024484,2]
[391247991,1760427046302,-800.0,0.00024496,2]
[391247992,1760427046311,-823.0,0.00024499,2]
[391247993,1760427046320,-800.0,0.00024522,2]
[391247994,1760427046329,-200.0,0.0002453,2]
[391247995,1760427046339,-800.0,0.00024548,2]
[391247996,1760427046348,-800.0,0.00024608,2]
[391247997,1760427046357,-800.0,0.00024622,2]
[391247998,1760427046366,-417.15472785,0.00024638,2]
[391247999,1760427046375,-160.0,0.00024639,2]
[391248000,1760427046384,-402.43064913,0.00024639,2]
[391248001,1760427046393,-800.0,0.00024656,2]
[391248002,1760427046403,-170.10833243,0.00024672,2]
[391248003,1760427046412,-800.0,0.00024675,2]
[391248005,1760427046420,-600.0,0.00024678,2]
[391248006,1760427046429,-1481.73,0.00024832,2]
[391248007,1760427046439,-3292.0,0.00024858,2]
[391248008,1760427046449,-163.174092,0.000249,7]
[391248010,1760427046458,-299.228441,0.000249,7]
[391248012,1760427046470,-151.0,0.000249,2]
[391248015,1760427046480,-151.0,0.000249,7]
[391248018,1760427046489,-155.175145,0.000249,7]
[391248021,1760427046498,-151.0,0.000249,7]
[391248024,1760427046507,-151.0,0.000249,7]
[391248026,1760427046517,-151.0,0.000249,7]
[391248029,1760427046526,-2992.735658,0.000249,7]
[391248030,1760427046535,-151.0,0.000249,7]
[391248031,1760427046544,-2992.735658,0.000249,7]
[391248032,1760427046554,-2992.735658,0.000249,7]
[391248033,1760427046563,-2992.735658,0.000249,7]
[391248034,1760427046572,-151.0,0.000249,7]
[391248035,1760427046581,-211892.41273019,0.000249,2]
[391248040,1760427046673,-134284.73825381,0.000249,2]
[391248042,1760427046683,-899.962758,0.000249,7]
[391248043,1760427046692,-899.962758,0.000249,7]
[391248044,1760427046701,-899.962758,0.000249,7]
[391248046,1760427046710,-899.962758,0.000249,7]
[391248047,1760427046719,-179.81511434,0.00025041,9]
[391248048,1760427046728,-332.306,0.00025041,9]
[391248049,1760427046738,-200.0,0.000251,7]
[391248050,1760427046747,-166.0,0.0002537,16]
[391248051,1760427046756,-1000.0,0.00025664,20]
[391248052,1760427046765,-29584.27,0.000257,7]
[391248053,1760427046774,-7434.31,0.00026027,2]
[391248054,1760427046783,-200.0,0.000261,7]
[391248055,1760427046792,-1152.0,0.00026707,2]
[391248056,1760427046801,-1975.64,0.00026742,2]
[391248057,1760427046811,-4199.0,0.00026876,2]
[391248058,1760427046820,-200.0,0.000271,7]
[391248059,1760427046831,-645.24286106,0.00027192,2]
[391248060,1760427046841,-307.73677994,0.00027208,5]
[391248061,1760427046850,-981.0,0.00027255,2]
[391248062,1760427046860,-2161.0,0.00027255,2]
[391248063,1760427046869,-631.0,0.00027255,2]
[391248065,1760427046879,-689.249611,0.00027259,2]
[391248066,1760427046888,-294.094483,0.00027397,7]
[391248067,1760427046898,-170.10833243,0.00027557,2]
[391248068,1760427046907,-2591.29,0.000278,2]
[391248069,1760427046916,-235.0,0.0002817,2]
[391248070,1760427046926,-1000.0,0.00028231,30]
[391248071,1760427046935,-244.0,0.00028231,30]
[391248072,1760427046945,-242.0,0.00028233,7]
[391248073,1760427046954,-235.0,0.0002829,2]
[391248074,1760427046963,-242.0,0.00028338,2]
[391248075,1760427046973,-150.109,0.00028362,2]
[391248076,1760427046983,-150.0,0.00028362,2]
[391248077,1760427046993,-150.0,0.00028362,2]
[391248078,1760427047006,-235.0,0.00028485,2]
[391248079,1760427047015,-403.2567699,0.00028493,30]
[391248080,1760427047025,-235.0,0.00028551,2]
[391248081,1760427047034,-235.0,0.00028618,2]
[391248082,1760427047045,-2469.55,0.00028652,2]
[391248083,1760427047054,-29584.27,0.000287,7]
[391248084,1760427047065,-166.0,0.00028714,7]
[391248085,1760427047075,-165.26012415,0.00028714,7]
[391248086,1760427047085,-205.56371041,0.00028714,7]
[391248087,1760427047094,-330.0,0.00028714,7]
[391248088,1760427047103,-156.11918406,0.00028714,7]
[391248089,1760427047113,-336.72126309,0.00028714,7]
[391248090,1760427047122,-235.0,0.00028803,7]
[391248091,1760427047131,-900.0,0.00028804,7]
[391248092,1760427047140,-510.1286815,0.00028904,30]
[391248093,1760427047152,-235.0,0.00028918,2]
[391248094,1760427047161,-204.0,0.0002897,22]
[391248095,1760427047171,-15949.793587,0.0002898,15]
[391248096,1760427047181,-235.0,0.00029079,2]
[391248097,1760427047191,-1613.0,0.00029113,2]
[391248098,1760427047200,-235.0,0.00029119,2]
[391248099,1760427047210,-156.0,0.00029205,33]
[391248100,1760427047219,-235.0,0.00029397,2]
[391248101,1760427047229,-8839.5002,0.00029444,2]
[391248102,1760427047239,-235.0,0.00029451,2]
[391248103,1760427047248,-235.0,0.00029468,2]
[391248104,1760427047258,-402.43064913,0.00029526,3]
[391248105,1760427047267,-600.0,0.00029548,2]
[391248106,1760427047276,-596.70825757,0.00029556,2]